Workbook

Sheet OVERALL STATS
A1: OVERALL TITLE COMPANY MARKET STATISTICS (Washoe County, NV)
A2: Reporting Period: JULY, 2018
A4: OVERALL SALES MARKET (Resales & Subdivision Sales)
D5: % OF | E5: % OF | F5: RANK BY | G5: RANK BY
A6: TITLE COMPANY | B6: CLOSINGS | C6: DOLLAR VOLUME | D6: CLOSINGS | E6: DOLLAR VOLUME | F6: CLOSINGS | G6: DOLLAR VOLUME
A7: First Centennial Title | B7: 358 | C7: 181154630 | D7: =B7/$B$20 -> 0.3435700576 | E7: =C7/$C$20 -> 0.354980824 | F7: 1 | G7: 1
A8: Ticor Title | B8: 195 | C8: 104410571.8 | D8: =B8/$B$20 -> 0.1871401152 | E8: =C8/$C$20 -> 0.2045973145 | F8: 2 | G8: 2
A9: Western Title | B9: 174 | C9: 60491193.7 | D9: 0.1669865643 | E9: 0.1185352745 | F9: 3 | G9: 3
A10: First American Title | B10: 76 | C10: 39906095 | D10: 0.07293666027 | E10: 0.07819782738 | F10: 4 | G10: 5
A11: Reliant Title | B11: 69 | C11: 49778000 | D11: 0.06621880998 | E11: 0.09754227898 | F11: 5 | G11: 4
A12: North American Title | B12: 47 | C12: 19786081 | D12: 0.04510556622 | E12: 0.03877173516 | F12: 6 | G12: 6
A13: Capital Title | B13: 44 | C13: 18423400 | D13: 0.04222648752 | E13: 0.03610149911 | F13: 7 | G13: 8
A14: Westminster Title - Las Vegas | B14: 30 | C14: 19012461 | D14: =B14/$B$20 -> 0.02879078695 | E14: =C14/$C$20 -> 0.03725579121 | F14: 8 | G14: 7
A15: Driggs Title Agency Inc - Nevada | B15: 18 | C15: 5829000 | D15: =B15/$B$20 -> 0.01727447217 | E15: =C15/$C$20 -> 0.01142219342 | F15: 9 | G15: 9
A16: DHI Title of Nevada | B16: 16 | C16: 5756551 | D16: =B16/$B$20 -> 0.01535508637 | E16: =C16/$C$20 -> 0.01128022628 | F16: 10 | G16: 10
A17: Acme Title and Escrow | B17: 11 | C17: 4646400 | D17: 0.01055662188 | E17: 0.009104834366 | F17: 11 | G17: 11
A18: Toiyabe Title | B18: 3 | C18: 496000 | D18: 0.002879078695 | E18: 0.000971934798 | F18: 12 | G18: 13
A19: Signature Title Company | B19: 1 | C19: 631914.89 | D19: 0.0009596928983 | E19: 0.001238266272 | F19: 13 | G19: 12
A20: GRAND TOTAL | B20: =SUM(B7:B19) -> 1042 | C20: =SUM(C7:C19) -> 510322298.4 | D20: =SUM(D7:D19) -> 1 | E20: =SUM(E7:E19) -> 1
A22: OVERALL LOAN ONLY MARKET (Refi's, Construction, Commercial, Credit Lines, Homequity, etc.)
D23: % OF | E23: % OF | F23: RANK BY | G23: RANK BY
A24: TITLECOMPANY | B24: CLOSINGS | C24: DOLLAR VOLUME | D24: CLOSINGS | E24: DOLLAR VOLUME | F24: CLOSINGS | G24: DOLLAR VOLUME
A25: First Centennial Title | B25: 123 | C25: 39774697.76 | D25: =B25/$B$35 -> 0.3575581395 | E25: =C25/$C$35 -> 0.2544439385 | F25: 1 | G25: 2
A26: Western Title | B26: 52 | C26: 13962864.68 | D26: =B26/$B$35 -> 0.1511627907 | E26: =C26/$C$35 -> 0.08932226973 | F26: 2 | G26: 4
A27: Ticor Title | B27: 40 | C27: 16466240.51 | D27: 0.1162790698 | E27: 0.105336692 | F27: 3 | G27: 3
A28: First American Title | B28: 38 | C28: 61112406.75 | D28: 0.1104651163 | E28: 0.3909440509 | F28: 4 | G28: 1
A29: Reliant Title | B29: 31 | C29: 12033727.99 | D29: 0.09011627907 | E29: 0.07698133027 | F29: 5 | G29: 5
A30: Capital Title | B30: 31 | C30: 6611922 | D30: 0.09011627907 | E30: 0.04229732894 | F30: 5 | G30: 6
A31: Driggs Title Agency Inc - Nevada | B31: 12 | C31: 2459780 | D31: 0.03488372093 | E31: 0.01573553405 | F31: 6 | G31: 7
A32: Toiyabe Title | B32: 6 | C32: 1589744 | D32: 0.01744186047 | E32: 0.01016980008 | F32: 7 | G32: 8
A33: North American Title | B33: 6 | C33: 1198100 | D33: 0.01744186047 | E33: 0.007664402243 | F33: 7 | G33: 9
A34: Acme Title and Escrow | B34: 5 | C34: 1110600 | D34: 0.01453488372 | E34: 0.00710465331 | F34: 8 | G34: 10
A35: GRAND TOTAL | B35: =SUM(B25:B34) -> 344 | C35: =SUM(C25:C34) -> 156320083.7 | D35: =SUM(D25:D34) -> 1 | E35: =SUM(E25:E34) -> 1
A37: OVERALL SALES AND LOAN ONLY MARKETS COMBINED
D38: % OF | E38: % OF | F38: RANK BY | G38: RANK BY
A39: TITLECOMPANY | B39: CLOSINGS | C39: DOLLAR VOLUME | D39: CLOSINGS | E39: DOLLAR VOLUME | F39: CLOSINGS | G39: DOLLAR VOLUME
A40: First Centennial Title | B40: 481 | C40: 220929327.8 | D40: =B40/$B$53 -> 0.347041847 | E40: =C40/$C$53 -> 0.3314060637 | F40: 1 | G40: 1
A41: Ticor Title | B41: 235 | C41: 120876812.3 | D41: =B41/$B$53 -> 0.1695526696 | E41: =C41/$C$53 -> 0.1813218235 | F41: 2 | G41: 2
A42: Western Title | B42: 226 | C42: 74454058.38 | D42: 0.1630591631 | E42: 0.1116851559 | F42: 3 | G42: 4
A43: First American Title | B43: 114 | C43: 101018501.8 | D43: =B43/$B$53 -> 0.08225108225 | E43: =C43/$C$53 -> 0.1515332725 | F43: 4 | G43: 3
A44: Reliant Title | B44: 100 | C44: 61811727.99 | D44: =B44/$B$53 -> 0.07215007215 | E44: =C44/$C$53 -> 0.09272096952 | F44: 5 | G44: 5
A45: Capital Title | B45: 75 | C45: 25035322 | D45: =B45/$B$53 -> 0.05411255411 | E45: =C45/$C$53 -> 0.03755435099 | F45: 6 | G45: 6
A46: North American Title | B46: 53 | C46: 20984181 | D46: 0.03823953824 | E46: 0.03147741812 | F46: 7 | G46: 7
A47: Westminster Title - Las Vegas | B47: 30 | C47: 19012461 | D47: 0.02164502165 | E47: 0.02851973038 | F47: 8 | G47: 8
A48: Driggs Title Agency Inc - Nevada | B48: 30 | C48: 8288780 | D48: 0.02164502165 | E48: 0.01243362292 | F48: 8 | G48: 9
A49: Acme Title and Escrow | B49: 16 | C49: 5757000 | D49: 0.01154401154 | E49: 0.008635814576 | F49: 9 | G49: 10
A50: DHI Title of Nevada | B50: 16 | C50: 5756551 | D50: 0.01154401154 | E50: 0.008635141051 | F50: 9 | G50: 11
A51: Toiyabe Title | B51: 9 | C51: 2085744 | D51: 0.006493506494 | E51: 0.00312872997 | F51: 10 | G51: 12
A52: Signature Title Company | B52: 1 | C52: 631914.89 | D52: 0.0007215007215 | E52: 0.0009479068643 | F52: 11 | G52: 13
A53: GRAND TOTAL | B53: =SUM(B40:B52) -> 1386 | C53: =SUM(C40:C52) -> 666642382.1 | D53: =SUM(D40:D52) -> 1 | E53: =SUM(E40:E52) -> 1
A55: Information provided by Datasource | D55: SEE CHARTS BELOW:
A56: www.datasourcenev.com

Sheet SALES STATS
A1: SALES MARKET (Washoe County, NV)
A2: ='OVERALL STATS'!A2 -> Reporting Period: JULY, 2018
A4: RESALE MARKET (Includes ALL types of real property)
D5: % OF | E5: % OF | F5: RANK BY | G5: RANK BY
A6: TITLE COMPANY | B6: CLOSINGS | C6: DOLLAR VOLUME | D6: CLOSINGS | E6: DOLLAR VOLUME | F6: CLOSINGS | G6: DOLLAR VOLUME
A7: First Centennial Title | B7: 340 | C7: 172732101 | D7: =B7/$B$18 -> 0.3820224719 | E7: =C7/$C$18 -> 0.3976756651 | F7: 1 | G7: 1
A8: Ticor Title | B8: 174 | C8: 92757874.55 | D8: =B8/$B$18 -> 0.195505618 | E8: =C8/$C$18 -> 0.2135535274 | F8: 2 | G8: 2
A9: Western Title | B9: 150 | C9: 51902364.7 | D9: 0.1685393258 | E9: 0.1194931763 | F9: 3 | G9: 3
A10: Reliant Title | B10: 68 | C10: 48953000 | D10: 0.07640449438 | E10: 0.1127029471 | F10: 4 | G10: 4
A11: First American Title | B11: 59 | C11: 29635160 | D11: 0.06629213483 | E11: 0.06822809365 | F11: 5 | G11: 5
A12: Capital Title | B12: 44 | C12: 18423400 | D12: =B12/$B$18 -> 0.04943820225 | E12: =C12/$C$18 -> 0.04241561242 | F12: 6 | G12: 6
A13: North American Title | B13: 22 | C13: 8346999 | D13: 0.02471910112 | E13: 0.01921703239 | F13: 7 | G13: 7
A14: Driggs Title Agency Inc - Nevada | B14: 18 | C14: 5829000 | D14: 0.0202247191 | E14: 0.01341992275 | F14: 8 | G14: 8
A15: Acme Title and Escrow | B15: 11 | C15: 4646400 | D15: 0.01235955056 | E15: 0.01069726009 | F15: 9 | G15: 9
A16: Toiyabe Title | B16: 3 | C16: 496000 | D16: 0.003370786517 | E16: 0.001141925147 | F16: 10 | G16: 11
A17: Signature Title Company | B17: 1 | C17: 631914.89 | D17: 0.001123595506 | E17: 0.001454837709 | F17: 11 | G17: 10
A18: GRAND TOTAL | B18: =SUM(B7:B17) -> 890 | C18: =SUM(C7:C17) -> 434354214.1 | D18: =SUM(D7:D17) -> 1 | E18: =SUM(E7:E17) -> 1
A20: SUBDIVISION SALES (Builder/Developer Sales)
D21: % OF | E21: % OF | F21: RANK BY | G21: RANK BY
A22: TITLE COMPANY | B22: CLOSINGS | C22: DOLLAR VOLUME | D22: CLOSINGS | E22: DOLLAR VOLUME | F22: CLOSINGS | G22: DOLLAR VOLUME
A23: Westminster Title - Las Vegas | B23: 30 | C23: 19012461 | D23: =B23/$B$31 -> 0.1973684211 | E23: =C23/$C$31 -> 0.2502690595 | F23: 1 | G23: 1
A24: North American Title | B24: 25 | C24: 11439082 | D24: 0.1644736842 | E24: 0.150577471 | F24: 2 | G24: 3
A25: Western Title | B25: 24 | C25: 8588829 | D25: 0.1578947368 | E25: 0.1130583861 | F25: 3 | G25: 5
A26: Ticor Title | B26: 21 | C26: 11652697.25 | D26: 0.1381578947 | E26: 0.1533893788 | F26: 4 | G26: 2
A27: First Centennial Title | B27: 18 | C27: 8422529 | D27: 0.1184210526 | E27: 0.1108693089 | F27: 5 | G27: 6
A28: First American Title | B28: 17 | C28: 10270935 | D28: 0.1118421053 | E28: 0.1352006583 | F28: 6 | G28: 4
A29: DHI Title of Nevada | B29: 16 | C29: 5756551 | D29: 0.1052631579 | E29: 0.07577591375 | F29: 7 | G29: 7
A30: Reliant Title | B30: 1 | C30: 825000 | D30: 0.006578947368 | E30: 0.01085982368 | F30: 8 | G30: 8
A31: GRAND TOTAL | B31: =SUM(B23:B30) -> 152 | C31: =SUM(C23:C30) -> 75968084.25 | D31: =SUM(D23:D30) -> 1 | E31: =SUM(E23:E30) -> 1
A33: RESIDENTIAL RESALE MARKET (Residential Properties Only)
D34: % OF | E34: % OF | F34: RANK BY | G34: RANK BY
A35: TITLE COMPANY | B35: CLOSINGS | C35: DOLLAR VOLUME | D35: CLOSINGS | E35: DOLLAR VOLUME | F35: CLOSINGS | G35: DOLLAR VOLUME
A36: First Centennial Title | B36: 311 | C36: 137210879 | D36: =B36/$B$46 -> 0.3844252163 | E36: =C36/$C$46 -> 0.3849985805 | F36: 1 | G36: 1
A37: Ticor Title | B37: 148 | C37: 62688226.55 | D37: =B37/$B$46 -> 0.1829419036 | E37: =C37/$C$46 -> 0.1758962439 | F37: 2 | G37: 2
A38: Western Title | B38: 138 | C38: 48244503 | D38: 0.1705809642 | E38: 0.13536875 | F38: 3 | G38: 3
A39: Reliant Title | B39: 64 | C39: 47733000 | D39: 0.07911001236 | E39: 0.133933529 | F39: 4 | G39: 4
A40: First American Title | B40: 52 | C40: 23057800 | D40: 0.06427688504 | E40: 0.06469764157 | F40: 5 | G40: 5
A41: Capital Title | B41: 43 | C41: 18198400 | D41: 0.05315203956 | E41: 0.05106270157 | F41: 6 | G41: 6
A42: North American Title | B42: 22 | C42: 8346999 | D42: 0.02719406675 | E42: 0.02342075781 | F42: 7 | G42: 7
A43: Driggs Title Agency Inc - Nevada | B43: 17 | C43: 5771000 | D43: 0.02101359703 | E43: 0.01619278897 | F43: 8 | G43: 8
A44: Acme Title and Escrow | B44: 11 | C44: 4646400 | D44: 0.01359703337 | E44: 0.01303728551 | F44: 9 | G44: 9
A45: Toiyabe Title | B45: 3 | C45: 496000 | D45: 0.003708281829 | E45: 0.001391721249 | F45: 10 | G45: 10
A46: GRAND TOTAL | B46: =SUM(B36:B45) -> 809 | C46: =SUM(C36:C45) -> 356393207.6 | D46: =SUM(D36:D45) -> 1 | E46: =SUM(E36:E45) -> 1
A48: COMMERCIAL/INDUSTRIAL, APARTMENTS, MOBILE HOME PARKS SALES MARKET
D49: % OF | E49: % OF | F49: RANK BY | G49: RANK BY
A50: TITLE COMPANY | B50: CLOSINGS | C50: DOLLAR VOLUME | D50: CLOSINGS | E50: DOLLAR VOLUME | F50: CLOSINGS | G50: DOLLAR VOLUME
A51: Ticor Title | B51: 9 | C51: 18307759 | D51: =B51/$B$56 -> 0.3913043478 | E51: =C51/$C$56 -> 0.4973221737 | F51: 1 | G51: 1
A52: First Centennial Title | B52: 7 | C52: 14035000 | D52: =B52/$B$56 -> 0.3043478261 | E52: =C52/$C$56 -> 0.3812545658 | F52: 2 | G52: 2
A53: First American Title | B53: 4 | C53: 2718000 | D53: =B53/$B$56 -> 0.1739130435 | E53: =C53/$C$56 -> 0.07383326754 | F53: 3 | G53: 3
A54: Reliant Title | B54: 2 | C54: 1120000 | D54: =B54/$B$56 -> 0.08695652174 | E54: =C54/$C$56 -> 0.0304243045 | F54: 4 | G54: 4
A55: Signature Title Company | B55: 1 | C55: 631914.89 | D55: =B55/$B$56 -> 0.04347826087 | E55: =C55/$C$56 -> 0.01716568842 | F55: 5 | G55: 5
A56: GRAND TOTAL | B56: =SUM(B51:B55) -> 23 | C56: =SUM(C51:C55) -> 36812673.89 | D56: =SUM(D51:D55) -> 1 | E56: =SUM(E51:E55) -> 1
A58: VACANT LAND SALES
D59: % OF | E59: % OF | F59: RANK BY | G59: RANK BY
A60: TITLE COMPANY | B60: CLOSINGS | C60: DOLLAR VOLUME | D60: CLOSINGS | E60: DOLLAR VOLUME | F60: CLOSINGS | G60: DOLLAR VOLUME
A61: First Centennial Title | B61: 22 | C61: 21486222 | D61: =B61/$B$68 -> 0.3793103448 | E61: =C61/$C$68 -> 0.5221650694 | F61: 1 | G61: 1
A62: Ticor Title | B62: 17 | C62: 11761889 | D62: 0.2931034483 | E62: 0.2858412049 | F62: 2 | G62: 2
A63: Western Title | B63: 12 | C63: 3657861.7 | D63: 0.2068965517 | E63: 0.08889453011 | F63: 3 | G63: 4
A64: First American Title | B64: 3 | C64: 3859360 | D64: 0.05172413793 | E64: 0.09379140652 | F64: 4 | G64: 3
A65: Reliant Title | B65: 2 | C65: 100000 | D65: 0.03448275862 | E65: 0.002430232125 | F65: 5 | G65: 6
A66: Driggs Title Agency Inc - Nevada | B66: 1 | C66: 58000 | D66: 0.01724137931 | E66: 0.001409534632 | F66: 6 | G66: 7
A67: Capital Title | B67: 1 | C67: 225000 | D67: 0.01724137931 | E67: 0.00546802228 | F67: 6 | G67: 5
A68: GRAND TOTAL | B68: =SUM(B61:B67) -> 58 | C68: =SUM(C61:C67) -> 41148332.7 | D68: =SUM(D61:D67) -> 1 | E68: =SUM(E61:E67) -> 1
A70: INCLINE VILLAGE SALES MARKET
D71: % OF | E71: % OF | F71: RANK BY | G71: RANK BY
A72: TITLE COMPANY | B72: CLOSINGS | C72: DOLLAR VOLUME | D72: CLOSINGS | E72: DOLLAR VOLUME | F72: CLOSINGS | G72: DOLLAR VOLUME
A73: Reliant Title | B73: 22 | C73: 33558000 | D73: =B73/$B$76 -> 0.3793103448 | E73: =C73/$C$76 -> 0.5316034597 | F73: 1 | G73: 1
A74: First Centennial Title | B74: 22 | C74: 18447000 | D74: =B74/$B$76 -> 0.3793103448 | E74: =C74/$C$76 -> 0.2922250737 | F74: 1 | G74: 2
A75: First American Title | B75: 14 | C75: 11121000 | D75: =B75/$B$76 -> 0.2413793103 | E75: =C75/$C$76 -> 0.1761714666 | F75: 2 | G75: 3
A76: GRAND TOTAL | B76: =SUM(B73:B75) -> 58 | C76: =SUM(C73:C75) -> 63126000 | D76: =SUM(D73:D75) -> 1 | E76: =SUM(E73:E75) -> 1
A78: RESIDENTIAL RESALE MARKET (Excluding Incline Village)
D79: % OF | E79: % OF | F79: RANK BY | G79: RANK BY
A80: TITLE COMPANY | B80: CLOSINGS | C80: DOLLAR VOLUME | D80: CLOSINGS | E80: DOLLAR VOLUME | F80: CLOSINGS | G80: DOLLAR VOLUME
A81: First Centennial Title | B81: 290 | C81: 120188879 | D81: =B81/$B$91 -> 0.3846153846 | E81: =C81/$C$91 -> 0.4063012815 | F81: 1 | G81: 1
A82: Ticor Title | B82: 148 | C82: 62688226.55 | D82: =B82/$B$91 -> 0.1962864721 | E82: =C82/$C$91 -> 0.2119189978 | F82: 2 | G82: 2
A83: Western Title | B83: 138 | C83: 48244503 | D83: 0.1830238727 | E83: 0.1630916567 | F83: 3 | G83: 3
A84: Reliant Title | B84: 44 | C84: 15295000 | D84: 0.05835543767 | E84: 0.05170510077 | F84: 4 | G84: 5
A85: Capital Title | B85: 43 | C85: 18198400 | D85: 0.05702917772 | E85: 0.06152011153 | F85: 5 | G85: 4
A86: First American Title | B86: 38 | C86: 11936800 | D86: 0.05039787798 | E86: 0.0403526281 | F86: 6 | G86: 6
A87: North American Title | B87: 22 | C87: 8346999 | D87: 0.02917771883 | E87: 0.02821722291 | F87: 7 | G87: 7
A88: Driggs Title Agency Inc - Nevada | B88: 17 | C88: 5771000 | D88: 0.0225464191 | E88: 0.01950899879 | F88: 8 | G88: 8
A89: Acme Title and Escrow | B89: 11 | C89: 4646400 | D89: 0.01458885942 | E89: 0.01570726252 | F89: 9 | G89: 9
A90: Toiyabe Title | B90: 3 | C90: 496000 | D90: 0.003978779841 | E90: 0.001676739456 | F90: 10 | G90: 10
A91: GRAND TOTAL | B91: =SUM(B81:B90) -> 754 | C91: =SUM(C81:C90) -> 295812207.6 | D91: =SUM(D81:D90) -> 1 | E91: =SUM(E81:E90) -> 1
A93: Information provided by Datasource
A94: www.datasourcenev.com

Sheet LOAN ONLY STATS
A1: LOAN ONLY MARKETS (Washoe County, NV)
A2: ='OVERALL STATS'!A2 -> Reporting Period: JULY, 2018
A4: CONVENTIONAL LOANS MARKET (Refi's)
D5: % OF | E5: % OF | F5: RANK BY | G5: RANK BY
A6: TITLECOMPANY | B6: CLOSINGS | C6: DOLLAR VOLUME | D6: CLOSINGS | E6: DOLLAR VOLUME | F6: CLOSINGS | G6: DOLLAR VOLUME
A7: First Centennial Title | B7: 85 | C7: 31526589 | D7: =B7/$B$17 -> 0.3281853282 | E7: =C7/$C$17 -> 0.3937834267 | F7: 1 | G7: 1
A8: Western Title | B8: 43 | C8: 10977412 | D8: =B8/$B$17 -> 0.166023166 | E8: =C8/$C$17 -> 0.137113562 | F8: 2 | G8: 2
A9: First American Title | B9: 28 | C9: 7715647 | D9: 0.1081081081 | E9: 0.09637242758 | F9: 3 | G9: 4
A10: Capital Title | B10: 28 | C10: 6421922 | D10: 0.1081081081 | E10: 0.0802131322 | F10: 3 | G10: 6
A11: Reliant Title | B11: 26 | C11: 10916983 | D11: 0.1003861004 | E11: 0.1363587724 | F11: 4 | G11: 3
A12: Ticor Title | B12: 23 | C12: 6591954 | D12: 0.0888030888 | E12: 0.08233691996 | F12: 5 | G12: 5
A13: Driggs Title Agency Inc - Nevada | B13: 9 | C13: 2011780 | D13: 0.03474903475 | E13: 0.02512817426 | F13: 6 | G13: 7
A14: Toiyabe Title | B14: 6 | C14: 1589744 | D14: 0.02316602317 | E14: 0.01985672601 | F14: 7 | G14: 8
A15: North American Title | B15: 6 | C15: 1198100 | D15: 0.02316602317 | E15: 0.01496488959 | F15: 7 | G15: 9
A16: Acme Title and Escrow | B16: 5 | C16: 1110600 | D16: 0.01930501931 | E16: 0.01387196927 | F16: 8 | G16: 10
A17: GRAND TOTAL | B17: =SUM(B7:B16) -> 259 | C17: =SUM(C7:C16) -> 80060731 | D17: =SUM(D7:D16) -> 1 | E17: =SUM(E7:E16) -> 1
A19: COMMERCIAL LOANS MARKET
D20: % OF | E20: % OF | F20: RANK BY | G20: RANK BY
A21: TITLECOMPANY | B21: CLOSINGS | C21: DOLLAR VOLUME | D21: CLOSINGS | E21: DOLLAR VOLUME | F21: CLOSINGS | G21: DOLLAR VOLUME
A22: Ticor Title | B22: 5 | C22: 5604572.51 | D22: =B22/$B$27 -> 0.4166666667 | E22: =C22/$C$27 -> 0.3193032579 | F22: 1 | G22: 2
A23: First American Title | B23: 2 | C23: 7861328 | D23: =B23/$B$27 -> 0.1666666667 | E23: =C23/$C$27 -> 0.4478749516 | F23: 2 | G23: 1
A24: First Centennial Title | B24: 2 | C24: 1315000 | D24: =B24/$B$27 -> 0.1666666667 | E24: =C24/$C$27 -> 0.07491807509 | F24: 2 | G24: 4
A25: Reliant Title | B25: 2 | C25: 995844.99 | D25: =B25/$B$27 -> 0.1666666667 | E25: =C25/$C$27 -> 0.05673520132 | F25: 2 | G25: 5
A26: Western Title | B26: 1 | C26: 1775761 | D26: =B26/$B$27 -> 0.08333333333 | E26: =C26/$C$27 -> 0.101168514 | F26: 3 | G26: 3
A27: GRAND TOTAL | B27: =SUM(B22:B26) -> 12 | C27: =SUM(C22:C26) -> 17552506.5 | D27: =SUM(D22:D26) -> 1 | E27: =SUM(E22:E26) -> 1
A29: HOME EQUITY & CREDIT LINE LOANS MARKET
D30: % OF | E30: % OF | F30: RANK BY | G30: RANK BY
A31: TITLECOMPANY | B31: CLOSINGS | C31: DOLLAR VOLUME | D31: CLOSINGS | E31: DOLLAR VOLUME | F31: CLOSINGS | G31: DOLLAR VOLUME
A32: First Centennial Title | B32: 23 | C32: 2081358.76 | D32: =B32/$B$39 -> 0.4893617021 | E32: =C32/$C$39 -> 0.5431479044 | F32: 1 | G32: 1
A33: Ticor Title | B33: 8 | C33: 590714 | D33: 0.170212766 | E33: 0.1541517385 | F33: 2 | G33: 2
A34: Western Title | B34: 4 | C34: 270191.68 | D34: 0.08510638298 | E34: 0.07050876937 | F34: 3 | G34: 4
A35: Driggs Title Agency Inc - Nevada | B35: 3 | C35: 448000 | D35: 0.06382978723 | E35: 0.1169093315 | F35: 4 | G35: 3
A36: Capital Title | B36: 3 | C36: 190000 | D36: 0.06382978723 | E36: 0.04958208254 | F36: 4 | G36: 5
A37: First American Title | B37: 3 | C37: 130865 | D37: 0.06382978723 | E37: 0.03415031175 | F37: 4 | G37: 6
A38: Reliant Title | B38: 3 | C38: 120900 | D38: 0.06382978723 | E38: 0.031549862 | F38: 4 | G38: 7
A39: GRAND TOTAL | B39: =SUM(B32:B38) -> 47 | C39: =SUM(C32:C38) -> 3832029.44 | D39: =SUM(D32:D38) -> 1 | E39: =SUM(E32:E38) -> 1
A41: CONSTRUCTION LOANS MARKET
D42: % OF | E42: % OF | F42: RANK BY | G42: RANK BY
A43: TITLECOMPANY | B43: CLOSINGS | C43: DOLLAR VOLUME | D43: CLOSINGS | E43: DOLLAR VOLUME | F43: CLOSINGS | G43: DOLLAR VOLUME
A44: Ticor Title | B44: 4 | C44: 3679000 | D44: =B44/$B$48 -> 0.4 | E44: =C44/$C$48 -> 0.07200651366 | F44: 1 | G44: 2
A45: First American Title | B45: 3 | C45: 44629850 | D45: =B45/$B$48 -> 0.3 | E45: =C45/$C$48 -> 0.8735090796 | F45: 2 | G45: 1
A46: First Centennial Title | B46: 2 | C46: 2283750 | D46: =B46/$B$48 -> 0.2 | E46: =C46/$C$48 -> 0.04469825376 | F46: 3 | G46: 3
A47: Western Title | B47: 1 | C47: 500000 | D47: =B47/$B$48 -> 0.1 | E47: =C47/$C$48 -> 0.009786152985 | F47: 4 | G47: 4
A48: GRAND TOTAL | B48: =SUM(B44:B47) -> 10 | C48: =SUM(C44:C47) -> 51092600 | D48: =SUM(D44:D47) -> 1 | E48: =SUM(E44:E47) -> 1
A50: HARD MONEY LOANS MARKET
D51: % OF | E51: % OF | F51: RANK BY | G51: RANK BY
A52: TITLECOMPANY | B52: CLOSINGS | C52: DOLLAR VOLUME | D52: CLOSINGS | E52: DOLLAR VOLUME | F52: CLOSINGS | G52: DOLLAR VOLUME
A53: First Centennial Title | B53: 11 | C53: 2568000 | D53: =B53/$B$56 -> 0.6875 | E53: =C53/$C$56 -> 0.6789669048 | F53: 1 | G53: 1
A54: Western Title | B54: 3 | C54: 439500 | D54: =B54/$B$56 -> 0.1875 | E54: =C54/$C$56 -> 0.1162016957 | F54: 2 | G54: 3
A55: First American Title | B55: 2 | C55: 774716.75 | D55: =B55/$B$56 -> 0.125 | E55: =C55/$C$56 -> 0.2048313995 | F55: 3 | G55: 2
A56: GRAND TOTAL | B56: =SUM(B53:B55) -> 16 | C56: =SUM(C53:C55) -> 3782216.75 | D56: =SUM(D53:D55) -> 1 | E56: =SUM(E53:E55) -> 1
A58: CONVENTIONAL LOANS MARKET (Refi's) Excluding Incline Village
D59: % OF | E59: % OF | F59: RANK BY | G59: RANK BY
A60: TITLECOMPANY | B60: CLOSINGS | C60: DOLLAR VOLUME | D60: CLOSINGS | E60: DOLLAR VOLUME | F60: CLOSINGS | G60: DOLLAR VOLUME
A61: First Centennial Title | B61: 81 | C61: 26215488 | D61: =B61/$B$71 -> 0.3227091633 | E61: =C61/$C$71 -> 0.3684717723 | F61: 1 | G61: 1
A62: Western Title | B62: 43 | C62: 10977412 | D62: =B62/$B$71 -> 0.171314741 | E62: =C62/$C$71 -> 0.1542930063 | F62: 2 | G62: 2
A63: First American Title | B63: 28 | C63: 7715647 | D63: 0.1115537849 | E63: 0.1084472707 | F63: 3 | G63: 3
A64: Capital Title | B64: 28 | C64: 6421922 | D64: 0.1115537849 | E64: 0.09026331994 | F64: 3 | G64: 6
A65: Ticor Title | B65: 23 | C65: 6591954 | D65: 0.09163346614 | E65: 0.09265320459 | F65: 4 | G65: 5
A66: Reliant Title | B66: 22 | C66: 7313883 | D66: 0.08764940239 | E66: 0.1028002771 | F66: 5 | G66: 4
A67: Driggs Title Agency Inc - Nevada | B67: 9 | C67: 2011780 | D67: 0.03585657371 | E67: 0.02827657231 | F67: 6 | G67: 7
A68: Toiyabe Title | B68: 6 | C68: 1589744 | D68: 0.02390438247 | E68: 0.02234464562 | F68: 7 | G68: 8
A69: North American Title | B69: 6 | C69: 1198100 | D69: 0.02390438247 | E69: 0.01683989367 | F69: 7 | G69: 9
A70: Acme Title and Escrow | B70: 5 | C70: 1110600 | D70: 0.01992031873 | E70: 0.01561003748 | F70: 8 | G70: 10
A71: GRAND TOTAL | B71: =SUM(B61:B70) -> 251 | C71: =SUM(C61:C70) -> 71146530 | D71: =SUM(D61:D70) -> 1 | E71: =SUM(E61:E70) -> 1
A74: Information provided by Datasource
A75: www.datasourcenev.com

Sheet BRANCH SALES TRACKING
A1: BRANCH PERFORMANCE TRACKING (Washoe County, NV)
A2: ='OVERALL STATS'!A2 -> Reporting Period: JULY, 2018
A4: BUILDERDEAL | B4: (All)
A5: PROPTYPE | B5: (All)
A7: TITLECO | B7: BRANCH | C7: EO | D7: CLOSINGS | E7: DOLLAR VOL. | F7: % OF CLOSINGS | G7: % OF DOLLAR VOL.
A8: Acme Title and Escrow | D8: 11 | E8: 4646400 | F8: 0.01055662188 | G8: 0.009104834366
B9: LANDER | D9: 11 | E9: 4646400 | F9: 0.01055662188 | G9: 0.009104834366
C10: LTE | D10: 11 | E10: 4646400 | F10: 0.01055662188 | G10: 0.009104834366
A12: Capital Title | D12: 44 | E12: 18423400 | F12: 0.04222648752 | G12: 0.03610149911
B13: PLUMB | D13: 26 | E13: 10209400 | F13: 0.02495201536 | G13: 0.02000578856
C14: UNK | D14: 26 | E14: 10209400 | F14: 0.02495201536 | G14: 0.02000578856
B16: PROFESSIONAL | D16: 18 | E16: 8214000 | F16: 0.01727447217 | G16: 0.01609571055
C17: UNK | D17: 18 | E17: 8214000 | F17: 0.01727447217 | G17: 0.01609571055
A19: DHI Title of Nevada | D19: 16 | E19: 5756551 | F19: 0.01535508637 | G19: 0.01128022628
B20: LAS VEGAS | D20: 16 | E20: 5756551 | F20: 0.01535508637 | G20: 0.01128022628
C21: N/A | D21: 16 | E21: 5756551 | F21: 0.01535508637 | G21: 0.01128022628
A23: Driggs Title Agency Inc - Nevada | D23: 18 | E23: 5829000 | F23: 0.01727447217 | G23: 0.01142219342
B24: KIETZKE | D24: 18 | E24: 5829000 | F24: 0.01727447217 | G24: 0.01142219342
C25: KS | D25: 18 | E25: 5829000 | F25: 0.01727447217 | G25: 0.01142219342
A27: First American Title | D27: 76 | E27: 39906095 | F27: 0.07293666027 | G27: 0.07819782738
B28: INCLINE | D28: 14 | E28: 11121000 | F28: 0.01343570058 | G28: 0.02179211066
C29: VD | D29: 14 | E29: 11121000 | F29: 0.01343570058 | G29: 0.02179211066
B31: KIETZKE | D31: 32 | E31: 16371252 | F31: 0.03071017274 | G31: 0.03208022078
C32: BM | D32: 10 | E32: 2150000 | F32: 0.009596928983 | G32: 0.004213023822
C33: LC | D33: 7 | E33: 2863000 | F33: 0.006717850288 | G33: 0.005610180094
C34: MLR | D34: 15 | E34: 11358252 | F34: 0.01439539347 | G34: 0.02225701686
B36: MILWAUKEE, WI | D36: 1 | E36: 650000 | F36: 0.0009596928983 | G36: 0.001273704876
C37: NCS | D37: 1 | E37: 650000 | F37: 0.0009596928983 | G37: 0.001273704876
B39: MINDEN | D39: 1 | E39: 235000 | F39: 0.0009596928983 | G39: 0.0004604933015
C40: NF | D40: 1 | E40: 235000 | F40: 0.0009596928983 | G40: 0.0004604933015
B42: SPARKS | D42: 28 | E42: 11528843 | F42: 0.02687140115 | G42: 0.02259129777
C43: CY | D43: 13 | E43: 4904552 | F43: 0.01247600768 | G43: 0.009610695075
C44: JP | D44: 15 | E44: 6624291 | F44: 0.01439539347 | G44: 0.01298060269
A46: First Centennial Title | D46: 358 | E46: 181154630 | F46: 0.3435700576 | G46: 0.354980824
B47: DAMONTE | D47: 23 | E47: 10628799 | F47: 0.02207293666 | G47: 0.02082762018
C48: 13 | D48: 4 | E48: 2305000 | F48: 0.003838771593 | G48: 0.004516753446
C49: 24 | D49: 19 | E49: 8323799 | F49: 0.01823416507 | G49: 0.01631086673
B51: INCLINE | D51: 22 | E51: 18447000 | F51: 0.02111324376 | G51: 0.03614774439
C52: 14 | D52: 22 | E52: 18447000 | F52: 0.02111324376 | G52: 0.03614774439
B54: LAKESIDE | D54: 28 | E54: 11020400 | F54: 0.02687140115 | G54: 0.02159498034
C55: 5 | D55: 28 | E55: 11020400 | F55: 0.02687140115 | G55: 0.02159498034
B57: LAKESIDEMOANA | D57: 42 | E57: 12383400 | F57: 0.04030710173 | G57: 0.02426584149
C58: 12 | D58: 42 | E58: 12383400 | F58: 0.04030710173 | G58: 0.02426584149
B60: RIDGEVIEW | D60: 189 | E60: 109127496 | F60: 0.1813819578 | G60: 0.2138403443
C61: 1 | D61: 17 | E61: 5936900 | F61: 0.01631477927 | G61: 0.01163362843
C62: 10 | D62: 18 | E62: 10046800 | F62: 0.01727447217 | G62: 0.01968716639
C63: 11 | D63: 31 | E63: 18159950 | F63: 0.02975047985 | G63: 0.03558525672
C64: 15 | D64: 19 | E64: 8552654 | F64: 0.01823416507 | G64: 0.01675931862
C65: 19 | D65: 9 | E65: 2659100 | F65: 0.008637236084 | G65: 0.005210628672
C66: 20 | D66: 33 | E66: 16435091 | F66: 0.03166986564 | G66: 0.03220531623
C67: 3 | D67: 2 | E67: 754000 | F67: 0.001919385797 | G67: 0.001477497657
C68: 9 | D68: 58 | E68: 45984001 | F68: 0.0556621881 | G68: 0.09010776355
C69: UNK | D69: 2 | E69: 599000 | F69: 0.001919385797 | G69: 0.001173768032
B71: SO. VIRGINIA ST | D71: 15 | E71: 5137579 | F71: 0.01439539347 | G71: 0.01006732219
C72: 2 | D72: 15 | E72: 5137579 | F72: 0.01439539347 | G72: 0.01006732219
B74: SPARKS | D74: 39 | E74: 14409956 | F74: 0.03742802303 | G74: 0.02823697112
C75: 21 | D75: 39 | E75: 14409956 | F75: 0.03742802303 | G75: 0.02823697112
A77: North American Title | D77: 47 | E77: 19786081 | F77: 0.04510556622 | G77: 0.03877173516
B78: PROFESSIONAL | D78: 47 | E78: 19786081 | F78: 0.04510556622 | G78: 0.03877173516
C79: LH | D79: 26 | E79: 11914082 | F79: 0.02495201536 | G79: 0.02334619129
C80: RC | D80: 18 | E80: 7109499 | F80: 0.01727447217 | G80: 0.01393139007
C81: UNK | D81: 3 | E81: 762500 | F81: 0.002879078695 | G81: 0.001494153797
A83: Reliant Title | D83: 69 | E83: 49778000 | F83: 0.06621880998 | G83: 0.09754227898
B84: HENDERSON | D84: 1 | E84: 535000 | F84: 0.0009596928983 | G84: 0.001048357091
C85: UNK | D85: 1 | E85: 535000 | F85: 0.0009596928983 | G85: 0.001048357091
B87: INCLINE | D87: 22 | E87: 33558000 | F87: 0.02111324376 | G87: 0.06575844345
C88: KOT | D88: 22 | E88: 33558000 | F88: 0.02111324376 | G88: 0.06575844345
B90: MCCARRAN | D90: 46 | E90: 15685000 | F90: 0.04414587332 | G90: 0.03073547844
C91: FF | D91: 12 | E91: 2899800 | F91: 0.01151631478 | G91: 0.005682291386
C92: JC | D92: 1 | E92: 384000 | F92: 0.0009596928983 | G92: 0.0007524656501
C93: JES | D93: 9 | E93: 4283900 | F93: 0.008637236084 | G93: 0.008394498954
C94: JH | D94: 11 | E94: 3678000 | F94: 0.01055662188 | G94: 0.007207210055
C95: LS | D95: 4 | E95: 1368000 | F95: 0.003838771593 | G95: 0.002680658878
C96: NH | D96: 2 | E96: 944900 | F96: 0.001919385797 | G96: 0.001851574981
C97: UNK | D97: 3 | E97: 1021900 | F97: 0.002879078695 | G97: 0.00200246002
C98: ZEN | D98: 4 | E98: 1104500 | F98: 0.003838771593 | G98: 0.002164318517
A100: Signature Title Company | D100: 1 | E100: 631914.89 | F100: 0.0009596928983 | G100: 0.001238266272
B101: ZEPHYR | D101: 1 | E101: 631914.89 | F101: 0.0009596928983 | G101: 0.001238266272
C102: ZCT | D102: 1 | E102: 631914.89 | F102: 0.0009596928983 | G102: 0.001238266272
A104: Ticor Title | D104: 195 | E104: 104410571.8 | F104: 0.1871401152 | G104: 0.2045973145
B105: CARSON CITY | D105: 7 | E105: 2674400 | F105: 0.006717850288 | G105: 0.005240609725
C106: DKD | D106: 7 | E106: 2674400 | F106: 0.006717850288 | G106: 0.005240609725
B108: FERNLEY | D108: 1 | E108: 275000 | F108: 0.0009596928983 | G108: 0.00053887514
C109: DNO | D109: 1 | E109: 275000 | F109: 0.0009596928983 | G109: 0.00053887514
B111: GARDNERVILLE | D111: 1 | E111: 910000 | F111: 0.0009596928983 | G111: 0.001783186827
C112: RLT | D112: 1 | E112: 910000 | F112: 0.0009596928983 | G112: 0.001783186827
B114: KIETZKE | D114: 102 | E114: 62110044 | F114: 0.09788867562 | G114: 0.121707486
C115: AE | D115: 43 | E115: 19539296 | F115: 0.04126679463 | G115: 0.03828814861
C116: CC | D116: 1 | E116: 7300000 | F116: 0.0009596928983 | G116: 0.01430468554
C117: CD | D117: 10 | E117: 13965648 | F117: 0.009596928983 | G117: 0.02736632917
C118: DEB | D118: 11 | E118: 3841450 | F118: 0.01055662188 | G118: 0.007527497842
C119: DPR | D119: 13 | E119: 4043450 | F119: 0.01247600768 | G119: 0.007923326127
C120: KA | D120: 8 | E120: 3066700 | F120: 0.007677543186 | G120: 0.006009339607
C121: RLS | D121: 14 | E121: 6413500 | F121: 0.01343570058 | G121: 0.01256754804
C122: SL | D122: 1 | E122: 140000 | F122: 0.0009596928983 | G122: 0.0002743364349
C123: TO | D123: 1 | E123: 3800000 | F123: 0.0009596928983 | G123: 0.007446274662
B125: LAKESIDE | D125: 84 | E125: 38441127.8 | F125: 0.08061420345 | G125: 0.07532715682
C126: JN | D126: 36 | E126: 16045805.55 | F126: 0.03454894434 | G126: 0.0314424935
C127: SL | D127: 48 | E127: 22395322.25 | F127: 0.04606525912 | G127: 0.04388466332
A129: Toiyabe Title | D129: 3 | E129: 496000 | F129: 0.002879078695 | G129: 0.000971934798
B130: MCCARRAN | D130: 3 | E130: 496000 | F130: 0.002879078695 | G130: 0.000971934798
C131: JW | D131: 3 | E131: 496000 | F131: 0.002879078695 | G131: 0.000971934798
A133: Western Title | D133: 174 | E133: 60491193.7 | F133: 0.1669865643 | G133: 0.1185352745
B134: CARSON CITY | D134: 2 | E134: 730400 | F134: 0.001919385797 | G134: 0.001431252372
C135: AMG | D135: 1 | E135: 415000 | F135: 0.0009596928983 | G135: 0.0008132115749
C136: KDJ | D136: 1 | E136: 315400 | F136: 0.0009596928983 | G136: 0.000618040797
B138: GARDNERVILLE | D138: 3 | E138: 1318000 | F138: 0.002879078695 | G138: 0.00258268158
C139: ARJ | D139: 2 | E139: 733000 | F139: 0.001919385797 | G139: 0.001436347191
C140: WLD | D140: 1 | E140: 585000 | F140: 0.0009596928983 | G140: 0.001146334389
B142: KIETZKE | D142: 92 | E142: 32707798.7 | F142: 0.08829174664 | G142: 0.06409243492
C143: CRF | D143: 1 | E143: 262000 | F143: 0.0009596928983 | G143: 0.0005134010425
C144: JMS | D144: 17 | E144: 5615154 | F144: 0.01631477927 | G144: 0.01100315236
C145: MDD | D145: 27 | E145: 8546845 | F145: 0.02591170825 | G145: 0.01674793562
C146: MLM | D146: 6 | E146: 3346000 | F146: 0.00575815739 | G146: 0.006556640795
C147: PAH | D147: 28 | E147: 10830899.7 | F147: 0.02687140115 | G147: 0.02122364579
C148: SAB | D148: 13 | E148: 4106900 | F148: 0.01247600768 | G148: 0.008047659318
B150: SOUTH KIETZKE | D150: 76 | E150: 25284995 | F150: 0.07293666027 | G150: 0.04954710989
C151: ASK | D151: 9 | E151: 2028400 | F151: 0.008637236084 | G151: 0.003974743033
C152: CKL | D152: 16 | E152: 6285399 | F152: 0.01535508637 | G152: 0.01231652824
C153: CRF | D153: 22 | E153: 7928296 | F153: 0.02111324376 | G153: 0.01553586043
C154: DJA | D154: 22 | E154: 7041900 | F154: 0.02111324376 | G154: 0.01379892672
C155: MIF | D155: 7 | E155: 2001000 | F155: 0.006717850288 | G155: 0.003921051473
B157: WINNEMUCCA | D157: 1 | E157: 450000 | F157: 0.0009596928983 | G157: 0.0008817956837
C158: WIN | D158: 1 | E158: 450000 | F158: 0.0009596928983 | G158: 0.0008817956837
A160: Westminster Title - Las Vegas | D160: 30 | E160: 19012461 | F160: 0.02879078695 | G160: 0.03725579121
B161: LAS VEGAS | D161: 30 | E161: 19012461 | F161: 0.02879078695 | G161: 0.03725579121
C162: TB | D162: 30 | E162: 19012461 | F162: 0.02879078695 | G162: 0.03725579121
A164: Grand Total | D164: 1042 | E164: 510322298.4 | F164: 1 | G164: 1

Sheet LENDER TRACKING
A1: LENDER TRACKING (Washoe County, NV)
A2: ='OVERALL STATS'!A2 -> Reporting Period: JULY, 2018
A5: TYPELOAN | B5: (All)
A7: LENDER | B7: TITLECO | C7: EO | D7: CLOSINGS | E7: DOLLAR VOL. | F7: % OF CLOSINGS | G7: % OF DOLLAR VOL.
A8: ACADEMY MORTGAGE CORPORATION | D8: 4 | E8: 1059750 | F8: 0.01162790698 | G8: 0.006779359216
B9: First American Title | D9: 1 | E9: 252000 | F9: 0.002906976744 | G9: 0.001612076926
C10: CY | D10: 1 | E10: 252000 | F10: 0.002906976744 | G10: 0.001612076926
B12: Western Title | D12: 3 | E12: 807750 | F12: 0.008720930233 | G12: 0.00516728229
C13: CRF | D13: 1 | E13: 179500 | F13: 0.002906976744 | G13: 0.001148284953
C14: MIF | D14: 1 | E14: 131750 | F14: 0.002906976744 | G14: 0.0008428219643
C15: MLM | D15: 1 | E15: 496500 | F15: 0.002906976744 | G15: 0.003176175372
A17: ALL WESTERN MORTGAGE INC | D17: 3 | E17: 814722 | F17: 0.008720930233 | G17: 0.005211883085
B18: First American Title | D18: 3 | E18: 814722 | F18: 0.008720930233 | G18: 0.005211883085
C19: BC | D19: 1 | E19: 239000 | F19: 0.002906976744 | G19: 0.001528914228
C20: UNK | D20: 2 | E20: 575722 | F20: 0.005813953488 | G20: 0.003682968857
A22: AMERICA FIRST FEDERAL CREDIT UNION | D22: 1 | E22: 70000 | F22: 0.002906976744 | G22: 0.0004477991461
B23: First American Title | D23: 1 | E23: 70000 | F23: 0.002906976744 | G23: 0.0004477991461
C24: UNK | D24: 1 | E24: 70000 | F24: 0.002906976744 | G24: 0.0004477991461
A26: AMERICAN FINANCIAL NETWORK INC | D26: 1 | E26: 158660 | F26: 0.002906976744 | G26: 0.00101496875
B27: First American Title | D27: 1 | E27: 158660 | F27: 0.002906976744 | G27: 0.00101496875
C28: CY | D28: 1 | E28: 158660 | F28: 0.002906976744 | G28: 0.00101496875
A30: AMERICAN PACIFIC MORTGAGE CORPORATION | D30: 2 | E30: 427570 | F30: 0.005813953488 | G30: 0.002735221156
B31: Driggs Title Agency Inc - Nevada | D31: 1 | E31: 220000 | F31: 0.002906976744 | G31: 0.001407368745
C32: KS | D32: 1 | E32: 220000 | F32: 0.002906976744 | G32: 0.001407368745
B34: Ticor Title | D34: 1 | E34: 207570 | F34: 0.002906976744 | G34: 0.001327852411
C35: KA | D35: 1 | E35: 207570 | F35: 0.002906976744 | G35: 0.001327852411
A37: ANGEL OAK MORTGAGE SOLUTIONS LLC | D37: 2 | E37: 1165364 | F37: 0.005813953488 | G37: 0.007454985773
B38: First American Title | D38: 1 | E38: 877000 | F38: 0.002906976744 | G38: 0.005610283588
C39: UNK | D39: 1 | E39: 877000 | F39: 0.002906976744 | G39: 0.005610283588
B41: First Centennial Title | D41: 1 | E41: 288364 | F41: 0.002906976744 | G41: 0.001844702185
C42: 20 | D42: 1 | E42: 288364 | F42: 0.002906976744 | G42: 0.001844702185
A44: AXIA FINANCIAL LLC | D44: 3 | E44: 850700 | F44: 0.008720930233 | G44: 0.005442039052
B45: Capital Title | D45: 1 | E45: 202000 | F45: 0.002906976744 | G45: 0.001292220393
C46: UNK | D46: 1 | E46: 202000 | F46: 0.002906976744 | G46: 0.001292220393
B48: First American Title | D48: 1 | E48: 360000 | F48: 0.002906976744 | G48: 0.002302967037
C49: MLR | D49: 1 | E49: 360000 | F49: 0.002906976744 | G49: 0.002302967037
B51: Ticor Title | D51: 1 | E51: 288700 | F51: 0.002906976744 | G51: 0.001846851621
C52: JN | D52: 1 | E52: 288700 | F52: 0.002906976744 | G52: 0.001846851621
A54: BANK OF AMERICA NA | D54: 3 | E54: 5396000 | F54: 0.008720930233 | G54: 0.03451891704
B55: First Centennial Title | D55: 1 | E55: 2400000 | F55: 0.002906976744 | G55: 0.01535311358
C56: 14 | D56: 1 | E56: 2400000 | F56: 0.002906976744 | G56: 0.01535311358
B58: Reliant Title | D58: 1 | E58: 2000000 | F58: 0.002906976744 | G58: 0.01279426132
C59: KOT | D59: 1 | E59: 2000000 | F59: 0.002906976744 | G59: 0.01279426132
B61: Ticor Title | D61: 1 | E61: 996000 | F61: 0.002906976744 | G61: 0.006371542136
C62: JN | D62: 1 | E62: 996000 | F62: 0.002906976744 | G62: 0.006371542136
A64: BANK OF THE WEST | D64: 4 | E64: 44321450 | F64: 0.01162790698 | G64: 0.2835301066
B65: First American Title | D65: 2 | E65: 43933850 | F65: 0.005813953488 | G65: 0.2810505788
C66: CY | D66: 1 | E66: 280000 | F66: 0.002906976744 | G66: 0.001791196585
C67: NCS | D67: 1 | E67: 43653850 | F67: 0.002906976744 | G67: 0.2792593822
B69: Ticor Title | D69: 2 | E69: 387600 | F69: 0.005813953488 | G69: 0.002479527843
C70: CD | D70: 1 | E70: 150000 | F70: 0.002906976744 | G70: 0.0009595695989
C71: TO | D71: 1 | E71: 237600 | F71: 0.002906976744 | G71: 0.001519958245
A73: CALIBER HOME LOANS INC | D73: 4 | E73: 1198566 | F73: 0.01162790698 | G73: 0.007667383306
B74: First Centennial Title | D74: 2 | E74: 650000 | F74: 0.005813953488 | G74: 0.004158134928
C75: 1 | D75: 1 | E75: 175000 | F75: 0.002906976744 | G75: 0.001119497865
C76: 9 | D76: 1 | E76: 475000 | F76: 0.002906976744 | G76: 0.003038637063
B78: Ticor Title | D78: 1 | E78: 347280 | F78: 0.002906976744 | G78: 0.002221595535
C79: UNK | D79: 1 | E79: 347280 | F79: 0.002906976744 | G79: 0.002221595535
B81: Western Title | D81: 1 | E81: 201286 | F81: 0.002906976744 | G81: 0.001287652842
C82: ASK | D82: 1 | E82: 201286 | F82: 0.002906976744 | G82: 0.001287652842
A84: CARRINGTON MORTGAGE SERVICES LLC | D84: 1 | E84: 249287 | F84: 0.002906976744 | G84: 0.001594721511
B85: Reliant Title | D85: 1 | E85: 249287 | F85: 0.002906976744 | G85: 0.001594721511
C86: ZEN | D86: 1 | E86: 249287 | F86: 0.002906976744 | G86: 0.001594721511
A88: CASTLE & COOKE MORTGAGE LLC | D88: 1 | E88: 191105 | F88: 0.002906976744 | G88: 0.001222523655
B89: Driggs Title Agency Inc - Nevada | D89: 1 | E89: 191105 | F89: 0.002906976744 | G89: 0.001222523655
C90: KS | D90: 1 | E90: 191105 | F90: 0.002906976744 | G90: 0.001222523655
A92: CHIM PAUL | D92: 1 | E92: 200000 | F92: 0.002906976744 | G92: 0.001279426132
B93: First Centennial Title | D93: 1 | E93: 200000 | F93: 0.002906976744 | G93: 0.001279426132
C94: 24 | D94: 1 | E94: 200000 | F94: 0.002906976744 | G94: 0.001279426132
A96: CITADEL SERVICING CORPORATION | D96: 1 | E96: 927500 | F96: 0.002906976744 | G96: 0.005933338686
B97: Reliant Title | D97: 1 | E97: 927500 | F97: 0.002906976744 | G97: 0.005933338686
C98: UNK | D98: 1 | E98: 927500 | F98: 0.002906976744 | G98: 0.005933338686
A100: CITY NATIONAL BANK | D100: 1 | E100: 340000 | F100: 0.002906976744 | G100: 0.002175024424
B101: First Centennial Title | D101: 1 | E101: 340000 | F101: 0.002906976744 | G101: 0.002175024424
C102: 7 | D102: 1 | E102: 340000 | F102: 0.002906976744 | G102: 0.002175024424
A104: CMG FINANCIAL | D104: 1 | E104: 228293 | F104: 0.002906976744 | G104: 0.00146042015
B105: Western Title | D105: 1 | E105: 228293 | F105: 0.002906976744 | G105: 0.00146042015
C106: MLM | D106: 1 | E106: 228293 | F106: 0.002906976744 | G106: 0.00146042015
A108: CONSOLIDATED COMMUNITY CREDIT UNION | D108: 1 | E108: 125000 | F108: 0.002906976744 | G108: 0.0007996413324
B109: Western Title | D109: 1 | E109: 125000 | F109: 0.002906976744 | G109: 0.0007996413324
C110: RTO | D110: 1 | E110: 125000 | F110: 0.002906976744 | G110: 0.0007996413324
A112: CREDIT SUISSE AG CAYMAN ISLANDS BRANCH | D112: 1 | E112: 188790 | F112: 0.002906976744 | G112: 0.001207714297
B113: Ticor Title | D113: 1 | E113: 188790 | F113: 0.002906976744 | G113: 0.001207714297
C114: CD | D114: 1 | E114: 188790 | F114: 0.002906976744 | G114: 0.001207714297
A116: DICKEY ROBERT E JR TR, DICKEY DANA A TR, D & B FAMILY TRUST | D116: 1 | E116: 26000 | F116: 0.002906976744 | G116: 0.0001663253971
B117: First Centennial Title | D117: 1 | E117: 26000 | F117: 0.002906976744 | G117: 0.0001663253971
C118: 12 | D118: 1 | E118: 26000 | F118: 0.002906976744 | G118: 0.0001663253971
A120: DILIBERO RALPH, DILIBERO MARYANN | D120: 1 | E120: 300000 | F120: 0.002906976744 | G120: 0.001919139198
B121: First Centennial Title | D121: 1 | E121: 300000 | F121: 0.002906976744 | G121: 0.001919139198
C122: 10 | D122: 1 | E122: 300000 | F122: 0.002906976744 | G122: 0.001919139198
A124: DIRECT MORTGAGE CORP | D124: 1 | E124: 232500 | F124: 0.002906976744 | G124: 0.001487332878
B125: First American Title | D125: 1 | E125: 232500 | F125: 0.002906976744 | G125: 0.001487332878
C126: UNK | D126: 1 | E126: 232500 | F126: 0.002906976744 | G126: 0.001487332878
A128: EAGLE HOME MORTGAGE LLC | D128: 4 | E128: 1242634 | F128: 0.01162790698 | G128: 0.007949292059
B129: First American Title | D129: 1 | E129: 383000 | F129: 0.002906976744 | G129: 0.002450101042
C130: CY | D130: 1 | E130: 383000 | F130: 0.002906976744 | G130: 0.002450101042
B132: First Centennial Title | D132: 1 | E132: 315000 | F132: 0.002906976744 | G132: 0.002015096158
C133: 12 | D133: 1 | E133: 315000 | F133: 0.002906976744 | G133: 0.002015096158
B135: Ticor Title | D135: 1 | E135: 318800 | F135: 0.002906976744 | G135: 0.002039405254
C136: AE | D136: 1 | E136: 318800 | F136: 0.002906976744 | G136: 0.002039405254
B138: Western Title | D138: 1 | E138: 225834 | F138: 0.002906976744 | G138: 0.001444689605
C139: SAB | D139: 1 | E139: 225834 | F139: 0.002906976744 | G139: 0.001444689605
A141: EAGLE HOME MORTGAGE OF CALIFORNIA | D141: 1 | E141: 157000 | F141: 0.002906976744 | G141: 0.001004349513
B142: North American Title | D142: 1 | E142: 157000 | F142: 0.002906976744 | G142: 0.001004349513
C143: LH | D143: 1 | E143: 157000 | F143: 0.002906976744 | G143: 0.001004349513
A145: EVERGREEN MONEYSOURCE MORTGAGE COMPANY | D145: 5 | E145: 1520500 | F145: 0.01453488372 | G145: 0.009726837167
B146: Capital Title | D146: 1 | E146: 305000 | F146: 0.002906976744 | G146: 0.001951124851
C147: UNK | D147: 1 | E147: 305000 | F147: 0.002906976744 | G147: 0.001951124851
B149: Western Title | D149: 4 | E149: 1215500 | F149: 0.01162790698 | G149: 0.007775712316
C150: CRF | D150: 4 | E150: 1215500 | F150: 0.01162790698 | G150: 0.007775712316
A152: FAIRWAY INDEPENDENT MORTGAGE CORPORATION | D152: 1 | E152: 168000 | F152: 0.002906976744 | G152: 0.001074717951
B153: First Centennial Title | D153: 1 | E153: 168000 | F153: 0.002906976744 | G153: 0.001074717951
C154: UNK | D154: 1 | E154: 168000 | F154: 0.002906976744 | G154: 0.001074717951
A156: FEDERAL SAVINGS BANK | D156: 2 | E156: 348900 | F156: 0.005813953488 | G156: 0.002231958887
B157: Western Title | D157: 2 | E157: 348900 | F157: 0.005813953488 | G157: 0.002231958887
C158: MDD | D158: 2 | E158: 348900 | F158: 0.005813953488 | G158: 0.002231958887
A160: FINANCE OF AMERICA COMMERCIAL LLC | D160: 1 | E160: 315000 | F160: 0.002906976744 | G160: 0.002015096158
B161: First Centennial Title | D161: 1 | E161: 315000 | F161: 0.002906976744 | G161: 0.002015096158
C162: 9 | D162: 1 | E162: 315000 | F162: 0.002906976744 | G162: 0.002015096158
A164: FINANCE OF AMERICA MORGAGE LLC | D164: 1 | E164: 325000 | F164: 0.002906976744 | G164: 0.002079067464
B165: First Centennial Title | D165: 1 | E165: 325000 | F165: 0.002906976744 | G165: 0.002079067464
C166: 12 | D166: 1 | E166: 325000 | F166: 0.002906976744 | G166: 0.002079067464
A168: FINANCE OF AMERICA MORTGAGE LLC | D168: 8 | E168: 2552280 | F168: 0.02325581395 | G168: 0.01632726864
B169: Capital Title | D169: 1 | E169: 202000 | F169: 0.002906976744 | G169: 0.001292220393
C170: UNK | D170: 1 | E170: 202000 | F170: 0.002906976744 | G170: 0.001292220393
B172: First American Title | D172: 2 | E172: 658280 | F172: 0.005813953488 | G172: 0.00421110317
C173: UNK | D173: 2 | E173: 658280 | F173: 0.005813953488 | G173: 0.00421110317
B175: First Centennial Title | D175: 1 | E175: 314000 | F175: 0.002906976744 | G175: 0.002008699027
C176: 9 | D176: 1 | E176: 314000 | F176: 0.002906976744 | G176: 0.002008699027
B178: North American Title | D178: 1 | E178: 230000 | F178: 0.002906976744 | G178: 0.001471340052
C179: RC | D179: 1 | E179: 230000 | F179: 0.002906976744 | G179: 0.001471340052
B181: Reliant Title | D181: 1 | E181: 300000 | F181: 0.002906976744 | G181: 0.001919139198
C182: JH | D182: 1 | E182: 300000 | F182: 0.002906976744 | G182: 0.001919139198
B184: Western Title | D184: 2 | E184: 848000 | F184: 0.005813953488 | G184: 0.005424766799
C185: CKL | D185: 2 | E185: 848000 | F185: 0.005813953488 | G185: 0.005424766799
A187: FLAGSTAR BANK FSB | D187: 1 | E187: 216218 | F187: 0.002906976744 | G187: 0.001383174797
B188: Reliant Title | D188: 1 | E188: 216218 | F188: 0.002906976744 | G188: 0.001383174797
C189: UNK | D189: 1 | E189: 216218 | F189: 0.002906976744 | G189: 0.001383174797
A191: GATEWAY MORTGAGE GROUP LLC | D191: 1 | E191: 500000 | F191: 0.002906976744 | G191: 0.00319856533
B192: Capital Title | D192: 1 | E192: 500000 | F192: 0.002906976744 | G192: 0.00319856533
C193: UNK | D193: 1 | E193: 500000 | F193: 0.002906976744 | G193: 0.00319856533
A195: GIG COMMERCIAL FUNDING 2018 LLC | D195: 1 | E195: 3361328 | F195: 0.002906976744 | G195: 0.0215028544
B196: First American Title | D196: 1 | E196: 3361328 | F196: 0.002906976744 | G196: 0.0215028544
C197: NCS | D197: 1 | E197: 3361328 | F197: 0.002906976744 | G197: 0.0215028544
A199: GREAT BASIN FEDERAL CREDIT UNION | D199: 15 | E199: 1050082 | F199: 0.04360465116 | G199: 0.006717511757
B200: Capital Title | D200: 1 | E200: 214400 | F200: 0.002906976744 | G200: 0.001371544813
C201: UNK | D201: 1 | E201: 214400 | F201: 0.002906976744 | G201: 0.001371544813
B203: First Centennial Title | D203: 13 | E203: 660682 | F203: 0.03779069767 | G203: 0.004226469078
C204: UNK | D204: 13 | E204: 660682 | F204: 0.03779069767 | G204: 0.004226469078
B206: Western Title | D206: 1 | E206: 175000 | F206: 0.002906976744 | G206: 0.001119497865
C207: DJA | D207: 1 | E207: 175000 | F207: 0.002906976744 | G207: 0.001119497865
A209: GREATER NEVADA CREDIT UNION | D209: 13 | E209: 863000 | F209: 0.03779069767 | G209: 0.005520723759
B210: Capital Title | D210: 2 | E210: 125000 | F210: 0.005813953488 | G210: 0.0007996413324
C211: UNK | D211: 2 | E211: 125000 | F211: 0.005813953488 | G211: 0.0007996413324
B213: Driggs Title Agency Inc - Nevada | D213: 3 | E213: 448000 | F213: 0.008720930233 | G213: 0.002865914535
C214: KS | D214: 3 | E214: 448000 | F214: 0.008720930233 | G214: 0.002865914535
B216: First American Title | D216: 1 | E216: 40000 | F216: 0.002906976744 | G216: 0.0002558852264
C217: CY | D217: 1 | E217: 40000 | F217: 0.002906976744 | G217: 0.0002558852264
B219: First Centennial Title | D219: 2 | E219: 76000 | F219: 0.005813953488 | G219: 0.0004861819301
C220: 24 | D220: 1 | E220: 25000 | F220: 0.002906976744 | G220: 0.0001599282665
C221: UNK | D221: 1 | E221: 51000 | F221: 0.002906976744 | G221: 0.0003262536636
B223: Reliant Title | D223: 2 | E223: 84000 | F223: 0.005813953488 | G223: 0.0005373589754
C224: JES | D224: 1 | E224: 54000 | F224: 0.002906976744 | G224: 0.0003454450556
C225: UNK | D225: 1 | E225: 30000 | F225: 0.002906976744 | G225: 0.0001919139198
B227: Ticor Title | D227: 3 | E227: 90000 | F227: 0.008720930233 | G227: 0.0005757417593
C228: JN | D228: 2 | E228: 50000 | F228: 0.005813953488 | G228: 0.000319856533
C229: UNK | D229: 1 | E229: 40000 | F229: 0.002906976744 | G229: 0.0002558852264
A231: GREATER NEVADA MORTGAGE | D231: 15 | E231: 3512825 | F231: 0.04360465116 | G231: 0.02247200051
B232: Capital Title | D232: 5 | E232: 1520800 | F232: 0.01453488372 | G232: 0.009728756306
C233: UNK | D233: 5 | E233: 1520800 | F233: 0.01453488372 | G233: 0.009728756306
B235: Driggs Title Agency Inc - Nevada | D235: 3 | E235: 652725 | F235: 0.008720930233 | G235: 0.004175567109
C236: KS | D236: 3 | E236: 652725 | F236: 0.008720930233 | G236: 0.004175567109
B238: First American Title | D238: 3 | E238: 465300 | F238: 0.008720930233 | G238: 0.002976584896
C239: CY | D239: 2 | E239: 346300 | F239: 0.005813953488 | G239: 0.002215326347
C240: LC | D240: 1 | E240: 119000 | F240: 0.002906976744 | G240: 0.0007612585484
B242: First Centennial Title | D242: 4 | E242: 874000 | F242: 0.01162790698 | G242: 0.005591092196
C243: 12 | D243: 2 | E243: 475000 | F243: 0.005813953488 | G243: 0.003038637063
C244: 21 | D244: 1 | E244: 130000 | F244: 0.002906976744 | G244: 0.0008316269857
C245: 5 | D245: 1 | E245: 269000 | F245: 0.002906976744 | G245: 0.001720828147
A247: GUILD MORTGAGE COMPANY | D247: 37 | E247: 9507870 | F247: 0.1075581395 | G247: 0.06082308668
B248: Acme Title and Escrow | D248: 3 | E248: 773600 | F248: 0.008720930233 | G248: 0.004948820278
C249: LTE | D249: 3 | E249: 773600 | F249: 0.008720930233 | G249: 0.004948820278
B251: Capital Title | D251: 4 | E251: 723367 | F251: 0.01162790698 | G251: 0.004627473213
C252: UNK | D252: 4 | E252: 723367 | F252: 0.01162790698 | G252: 0.004627473213
B254: First American Title | D254: 5 | E254: 1198300 | F254: 0.01453488372 | G254: 0.007665681669
C255: JP | D255: 4 | E255: 905800 | F255: 0.01162790698 | G255: 0.005794520951
C256: MLR | D256: 1 | E256: 292500 | F256: 0.002906976744 | G256: 0.001871160718
B258: First Centennial Title | D258: 2 | E258: 567433 | F258: 0.005813953488 | G258: 0.003629943041
C259: 21 | D259: 1 | E259: 289656 | F259: 0.002906976744 | G259: 0.001852967278
C260: UNK | D260: 1 | E260: 277777 | F260: 0.002906976744 | G260: 0.001776975763
B262: Reliant Title | D262: 9 | E262: 2997628 | F262: 0.0261627907 | G262: 0.01917621798
C263: LS | D263: 7 | E263: 2430128 | F263: 0.02034883721 | G263: 0.01554584633
C264: UNK | D264: 2 | E264: 567500 | F264: 0.005813953488 | G264: 0.003630371649
B266: Ticor Title | D266: 6 | E266: 1101840 | F266: 0.01744186047 | G266: 0.007048614445
C267: DKD | D267: 2 | E267: 365987 | F267: 0.005813953488 | G267: 0.002341266659
C268: MCA | D268: 2 | E268: 352246 | F268: 0.005813953488 | G268: 0.002253363686
C269: UNK | D269: 2 | E269: 383607 | F269: 0.005813953488 | G269: 0.002453984101
B271: Toiyabe Title | D271: 4 | E271: 1035102 | F271: 0.01162790698 | G271: 0.006621682739
C272: JW | D272: 4 | E272: 1035102 | F272: 0.01162790698 | G272: 0.006621682739
B274: Western Title | D274: 4 | E274: 1110600 | F274: 0.01162790698 | G274: 0.00710465331
... 323 more rows

Sheet BUILDER TRACKING
A1: BUILDER TRACKING
A2: ='OVERALL STATS'!A2 -> Reporting Period: JULY, 2018
A4: BUILDER | B4: CLOSINGS | C4: DOLLAR VOLUME | D4: AVERAGE | E4: % OF CLOSINGS | F4: % OF DOLLAR VOLUME
A5: TOLL SOUTH RENO LLC | B5: 25 | C5: 15980722 | D5: 639228.88 | E5: =B5/$B$42 -> 0.1644736842 | F5: =C5/$C$42 -> 0.2103609978
A6: LENNAR RENO LLC | B6: 25 | C6: 11439082 | D6: 457563.28 | E6: =B6/$B$42 -> 0.1644736842 | F6: =C6/$C$42 -> 0.150577471
A7: DR HORTON INC | B7: 12 | C7: 4445111 | D7: 370425.9167 | E7: 0.07894736842 | F7: 0.05851287477
A8: TOLL NV LIMITED PARTNERSHIP | B8: 5 | C8: 3031739 | D8: 606347.8 | E8: 0.03289473684 | F8: 0.03990806179
A9: RYDER SHADOW LLC | B9: 5 | C9: 2486442 | D9: 497288.4 | E9: 0.03289473684 | F9: 0.03273008691
A10: CORONA LASENDA 2 LLC | B10: 5 | C10: 2372551 | D10: 474510.2 | E10: 0.03289473684 | F10: 0.03123089154
A11: KILEY BY DESERT WIND LP | B11: 5 | C11: 2099756 | D11: 419951.2 | E11: 0.03289473684 | F11: 0.02763997567
A12: SILVERADO VILLAGE 11 LLC | B12: 5 | C12: 1756552 | D12: 351310.4 | E12: 0.03289473684 | F12: 0.02312223636
A13: PARADISO COMMUNITIES LLC | B13: 5 | C13: 1685819 | D13: 337163.8 | E13: 0.03289473684 | F13: 0.02219114799
A14: DILORETO HOMES OF NEVADA INC | B14: 4 | C14: 1929944 | D14: 482486 | E14: 0.02631578947 | F14: 0.02540466854
A15: WEST COAST HOME BUILDERS INC | B15: 4 | C15: 1661856 | D15: 415464 | E15: 0.02631578947 | F15: 0.02187571289
A16: JENUANE COMMUNITIES NORTHRIDGE LLC | B16: 4 | C16: 1568821 | D16: 392205.25 | E16: 0.02631578947 | F16: 0.02065105387
A17: NEVADA FINISH LLC | B17: 4 | C17: 1402549 | D17: 350637.25 | E17: 0.02631578947 | F17: 0.01846234526
A18: WOODLAND VILLAGE PHASE 20 LLC | B18: 4 | C18: 1231995 | D18: 307998.75 | E18: 0.02631578947 | F18: 0.01621727087
A19: RANCHO HILLS BY DESERT WIND LP | B19: 4 | C19: 1074296 | D19: 268574 | E19: 0.02631578947 | F19: 0.01414141229
A20: EAGLE CANYON SOUTH LLC | B20: 3 | C20: 1272015 | D20: 424005 | E20: 0.01973684211 | F20: 0.01674407105
A21: SILVERADO EAGLE CANYON LLC | B21: 3 | C21: 1264226 | D21: 421408.6667 | E21: 0.01973684211 | F21: 0.01664154115
A22: JENUANE COMMUNITIES ESPLANADE LLC | B22: 3 | C22: 1024832 | D22: 341610.6667 | E22: 0.01973684211 | F22: 0.01349029675
A23: TL MT ROSE ESTATES LP | B23: 2 | C23: 2085499 | D23: 1042749.5 | E23: 0.01315789474 | F23: 0.02745230475
A24: MOUNTAINGATE HOMES LLC | B24: 2 | C24: 1549247 | D24: 774623.5 | E24: 0.01315789474 | F24: 0.02039339303
A25: PHD CONSTRUCTION | B25: 2 | C25: 1279485 | D25: 639742.5 | E25: 0.01315789474 | F25: 0.01684240181
A26: PEBBLE CREEK II INC | B26: 2 | C26: 1151192 | D26: 575596 | E26: 0.01315789474 | F26: 0.01515362683
A27: PRESTON HOMES LLC | B27: 2 | C27: 994000 | D27: 497000 | E27: 0.01315789474 | F27: 0.0130844421
A28: JENUANE COMMUNITIES KILEY RANCH LLC | B28: 2 | C28: 704287 | D28: 352143.5 | E28: 0.01315789474 | F28: 0.00927082744
A29: DR HORTON CA 3 IINC | B29: 2 | C29: 679220 | D29: 339610 | E29: 0.01315789474 | F29: 0.008940859924
A30: DR HORTON CA 3 INC | B30: 2 | C30: 632220 | D30: 316110 | E30: 0.01315789474 | F30: 0.00832217906
A31: PARC FORET INC | B31: 1 | C31: 2320879 | D31: 2320879 | E31: 0.006578947368 | F31: 0.03055071117
A32: CHALET DEVELOPMENT LLC | B32: 1 | C32: 1485311.25 | D32: 1485311.25 | E32: 0.006578947368 | F32: 0.01955177973
A33: DYNAMIC DIVERSIFIED DEVELOPMENT ENTERPRISES INCORPORATED | B33: 1 | C33: 1200000 | D33: 1200000 | E33: 0.006578947368 | F33: 0.01579610717
A34: BATES STRINGER RENO LLC | B34: 1 | C34: 886104 | D34: 886104 | E34: 0.006578947368 | F34: 0.01166416145
A35: DEVOTIONS LLC SERIES H | B35: 1 | C35: 825000 | D35: 825000 | E35: 0.006578947368 | F35: 0.01085982368
A36: SBE 64 POINTE LLC | B36: 1 | C36: 591437 | D36: 591437 | E36: 0.006578947368 | F36: 0.007785335195
A37: NOTHERN NEVADA HOMES LLC | B37: 1 | C37: 457752 | D37: 457752 | E37: 0.006578947368 | F37: 0.006025583039
A38: NORTHERN NEVADA HOMES LLC | B38: 1 | C38: 399305 | D38: 399305 | E38: 0.006578947368 | F38: 0.005256220477
A39: JENUANE COMMUNITES NORTHRIDGE LLC | B39: 1 | C39: 382629 | D39: 382629 | E39: 0.006578947368 | F39: 0.005036707241
A40: RELIANCE ENGINEERING LLC | B40: 1 | C40: 312750 | D40: 312750 | E40: 0.006578947368 | F40: 0.00411686043
A41: ALAMO PARTNERS LLC | B41: 1 | C41: 303459 | D41: 303459 | E41: 0.006578947368 | F41: 0.00399455907
A42: GRAND TOTAL | B42: =SUM(B5:B41) -> 152 | C42: =SUM(C5:C41) -> 75968084.25 | E42: =SUM(E5:E41) -> 1 | F42: =SUM(F5:F41) -> 1
